bitfinex/quotes_SOLUSD_20241209
["timestamp","ask_amount","ask_price","bid_price","bid_amount"]
[1733768837905,38.49014044,225.28,225.2,3.810091]
[1733768837906,9.18193825,225.24,225.2,3.810091]
[1733768838070,9.18193825,225.23,225.2,3.810091]
[1733768838727,9.18193825,225.22,225.2,3.810091]
[1733768840487,9.18193825,225.25,225.21,0.062]
[1733768840688,9.18193825,225.23,225.21,0.062]
[1733768843308,20.0,225.28,225.21,0.062]
[1733768843598,9.18193825,225.24,225.21,23.838884]
[1733768844306,9.18193825,225.22,225.21,23.838884]
[1733768844501,9.18193825,225.23,225.21,23.838884]
[1733768846605,9.18193825,225.24,225.21,23.838884]
[1733768848399,0.31883,225.29,225.21,23.838884]
[1733768848578,9.18193825,225.24,225.21,23.838884]
[1733768848780,9.18193825,225.23,225.21,23.838884]
[1733768849100,9.18193825,225.24,225.21,23.838884]
[1733768849884,9.18193825,225.23,225.21,23.838884]
[1733768850318,0.31883,225.29,225.21,23.838884]
[1733768850822,9.18193825,225.24,225.21,23.838884]
[1733768851299,9.18193825,225.23,225.21,23.838884]
[1733768851490,9.18193825,225.22,225.2,3.810091]
[1733768851691,9.18193825,225.21,225.2,3.872091]
[1733768851916,9.18193825,225.21,225.2,27.648975]
[1733768852284,9.18193825,225.22,225.2,27.648975]
[1733768853597,9.18193825,225.22,225.2,3.872091]
[1733768853916,9.18193825,225.23,225.2,3.872091]
[1733768854101,9.18193825,225.21,225.2,3.872091]
[1733768854502,9.18193825,225.21,225.18,3.872091]
[1733768854696,9.18193825,225.19,225.18,27.648975]
[1733768854903,9.18193825,225.19,225.16,3.872091]
[1733768855106,9.18193825,225.19,225.18,3.872091]
[1733768855412,9.18193825,225.2,225.18,3.872091]
[1733768857101,9.18193825,225.19,225.18,3.810091]
[1733768858225,9.18193825,225.19,225.13,0.062]
[1733768858434,1.5344,225.26,225.12,3.810091]
[1733768858435,9.18193825,225.15,225.12,3.810091]
[1733768858923,9.18193825,225.15,225.14,0.062]
[1733768859298,9.18193825,225.15,225.14,3.872091]
[1733768860024,9.18193825,225.15,225.14,3.810091]
[1733768860227,9.18193825,225.15,225.12,3.872091]
[1733768860401,9.18193825,225.16,225.14,3.872091]
[1733768861436,9.18193825,225.16,225.14,3.810091]
[1733768861809,9.18193825,225.15,225.14,3.810091]
[1733768861997,9.18193825,225.15,225.12,3.872091]
[1733768862727,9.18193825,225.13,225.12,3.872091]
[1733768863706,9.18193825,225.14,225.12,0.062]
[1733768863922,9.18193825,225.14,225.12,3.872091]
[1733768864431,9.18193825,225.13,225.12,3.872091]
[1733768866829,9.18193825,225.14,225.12,3.872091]
[1733768870427,9.18193825,225.13,225.12,3.872091]
[1733768870807,9.18193825,225.14,225.12,3.872091]
[1733768871009,20.0,225.21,225.12,3.872091]
[1733768871328,9.18193825,225.17,225.14,3.810091]
[1733768871525,9.18193825,225.16,225.14,3.810091]
[1733768872135,21.91845501,225.25,225.15,0.062]
[1733768872439,9.18193825,225.17,225.15,0.062]
[1733768873313,9.18193825,225.16,225.15,0.062]
[1733768873826,9.18193825,225.16,225.14,3.810091]
[1733768874022,21.91845501,225.25,225.14,3.810091]
[1733768874023,9.18193825,225.15,225.14,3.810091]
[1733768876151,9.18193825,225.15,225.12,3.810091]
[1733768876648,21.91845501,225.25,225.12,3.810091]
[1733768876649,9.18193825,225.13,225.12,3.810091]
[1733768878744,9.18193825,225.14,225.12,3.810091]
[1733768879528,9.18193825,225.14,225.13,0.062]
[1733768879742,9.18193825,225.17,225.13,0.062]
[1733768879940,9.18193825,225.17,225.14,3.810091]
[1733768880351,21.91845501,225.25,225.15,0.062]
[1733768880659,9.18193825,225.16,225.15,0.062]
[1733768880842,9.18193825,225.16,225.14,3.810091]
[1733768882131,9.18193825,225.16,225.15,0.062]
[1733768885263,9.18193825,225.18,225.15,0.062]
[1733768885432,9.18193825,225.17,225.15,0.062]
[1733768888052,9.18193825,225.16,225.15,0.062]
[1733768888885,9.18193825,225.16,225.14,3.810091]
[1733768889052,9.18193825,225.15,225.14,3.810091]
[1733768889947,9.18193825,225.17,225.15,0.062]
[1733768890262,9.18193825,225.17,225.16,3.810091]
[1733768894841,9.18193825,225.18,225.16,3.810091]
[1733768895146,20.0,225.25,225.19,3.810091]
[1733768895347,9.18193825,225.2,225.19,3.810091]
[1733768899457,6.76793,225.29,225.21,3.872091]
[1733768899654,9.18193825,225.23,225.21,3.872091]
[1733768900374,9.18193825,225.22,225.21,3.872091]
[1733768900752,9.18193825,225.23,225.21,3.872091]
[1733768902769,9.18193825,225.22,225.21,3.810091]
[1733768903166,9.18193825,225.24,225.23,3.810091]
[1733768908380,9.18193825,225.24,225.21,3.810091]
[1733768908588,9.18193825,225.22,225.21,3.810091]
[1733768910779,9.18193825,225.22,225.17,3.810091]
[1733768910968,9.18193825,225.18,225.17,3.810091]
[1733768912260,20.0,225.26,225.17,3.810091]
[1733768912561,9.18193825,225.21,225.19,0.062]
[1733768912797,0.31883,225.29,225.23,3.810091]
[1733768913300,0.31883,225.29,225.21,3.810091]
[1733768914377,9.18193825,225.22,225.21,3.810091]
[1733768914569,9.18193825,225.22,225.2,0.062]
[1733768914767,9.18193825,225.21,225.2,3.810091]
[1733768914967,9.18193825,225.21,225.18,27.648975]
[1733768915390,9.18193825,225.21,225.2,3.810091]
[1733768915576,9.18193825,225.21,225.2,3.872091]
[1733768915779,9.18193825,225.21,225.2,0.062]
[1733768916086,9.18193825,225.21,225.2,3.872091]
[1733768920970,9.18193825,225.21,225.2,0.062]
[1733768921171,9.18193825,225.21,225.2,3.872091]
[1733768922395,9.18193825,225.21,225.2,0.062]
[1733768922585,9.18193825,225.21,225.2,3.872091]
[1733768922917,9.18193825,225.21,225.2,0.062]
[1733768923079,9.18193825,225.21,225.2,3.872091]
[1733768923390,9.18193825,225.21,225.2,3.810091]
[1733768924301,9.18193825,225.21,225.2,3.872091]
[1733768924491,9.18193825,225.21,225.2,3.810091]
[1733768927692,9.18193825,225.21,225.18,3.872091]
[1733768927887,9.18193825,225.21,225.2,3.810091]
[1733768931612,9.18193825,225.21,225.18,3.872091]
[1733768931819,20.0,225.25,225.2,3.810091]
[1733768931998,9.18193825,225.21,225.2,3.810091]
[1733768933296,9.18193825,225.21,225.18,3.872091]
[1733768934328,9.18193825,225.19,225.18,3.872091]
[1733768935401,9.18193825,225.21,225.2,3.810091]
[1733768935611,9.18193825,225.21,225.2,3.872091]
[1733768937510,9.18193825,225.23,225.2,3.872091]
[1733768937797,0.31883,225.29,225.22,0.062]
[1733768938207,9.18193825,225.24,225.22,0.062]
[1733768938423,9.18193825,225.23,225.22,0.062]
[1733768940325,9.18193825,225.24,225.22,0.062]
[1733768940607,0.31883,225.29,225.24,0.062]
[1733768940806,9.18193825,225.26,225.24,0.062]
[1733768941615,9.18193825,225.25,225.24,0.062]
[1733768942400,20.0,225.25,225.24,0.062]
[1733768942597,0.31883,225.29,225.27,0.062]
[1733768942827,9.18193825,225.28,225.27,0.062]
[1733768943626,0.31883,225.29,225.28,3.810091]
[1733768943916,0.31883,225.29,225.28,27.586975]
[1733768946731,0.31883,225.29,225.28,36.76891325]
[1733768947528,0.31883,225.29,225.28,27.586975]
[1733768947946,0.31883,225.29,225.28,36.76891325]
[1733768950271,0.31883,225.29,225.28,36.89440325]
[1733768958981,0.31883,225.29,225.28,27.586975]
[1733768962779,0.31883,225.29,225.28,36.89440325]
[1733768967076,0.31883,225.29,225.28,3.810091]
[1733768968061,0.31883,225.29,225.28,13.11751925]
[1733768968258,0.31883,225.29,225.28,36.89440325]
[1733768976074,0.31883,225.29,225.28,37.01989325]
[1733768978594,20.0,225.38,225.29,24.027864]
[1733768978767,20.0,225.38,225.33,9.18193825]
[1733768979093,20.0,225.38,225.37,23.838884]
[1733768983906,9.18193825,225.4,225.37,23.838884]
[1733768986693,9.18193825,225.38,225.37,23.838884]
[1733768987001,9.18193825,225.38,225.36,3.810091]
[1733768987584,9.18193825,225.39,225.36,3.810091]
[1733768987791,29.18193825,225.4,225.36,3.810091]
[1733768991113,29.18193825,225.4,225.37,0.062]
[1733768991986,9.18193825,225.39,225.37,0.062]
[1733768992497,29.18193825,225.4,225.37,0.062]
[1733768993310,9.18193825,225.39,225.37,0.062]
[1733768994507,20.0,225.4,225.37,0.062]
[1733768994709,20.0,225.4,225.39,0.062]
[1733768997917,20.0,225.4,225.39,23.838884]
[1733769002619,9.18193825,225.42,225.4,3.810091]
[1733769005319,9.18193825,225.41,225.4,27.586975]
[1733769006725,9.18193825,225.41,225.37,3.872091]
[1733769006921,9.18193825,225.38,225.37,3.872091]
[1733769007222,9.18193825,225.38,225.37,3.810091]
[1733769008221,9.18193825,225.38,225.37,27.586975]
[1733769008434,9.18193825,225.38,225.37,27.648975]
[1733769008625,9.18193825,225.38,225.37,27.586975]
[1733769010330,9.18193825,225.38,225.37,3.810091]
[1733769010534,9.18193825,225.38,225.29,6.88530864]
[1733769010535,9.18193825,225.38,225.35,3.810091]
[1733769010726,9.18193825,225.36,225.33,3.810091]
[1733769010904,9.18193825,225.34,225.33,3.810091]
[1733769012509,9.18193825,225.34,225.32,23.776884]
[1733769012731,9.18193825,225.33,225.32,23.776884]
[1733769012908,9.18193825,225.33,225.31,3.810091]
[1733769013305,9.18193825,225.32,225.31,3.810091]
[1733769013712,9.18193825,225.32,225.29,3.810091]
[1733769013912,44.97891111,225.39,225.29,3.810091]
[1733769013913,9.18193825,225.3,225.29,3.810091]
[1733769014436,20.0,225.36,225.31,3.810091]
[1733769014728,9.18193825,225.32,225.31,3.810091]
[1733769015309,9.18193825,225.32,225.31,27.586975]
[1733769015626,9.18193825,225.32,225.31,3.810091]
[1733769016205,9.18193825,225.32,225.31,27.586975]
[1733769017531,6.2087,225.41,225.37,3.810091]
[1733769017708,1.5022,225.44,225.38,23.776884]
[1733769018039,1.5022,225.44,225.39,3.810091]
[1733769018228,1.5022,225.44,225.4,23.776884]
[1733769019739,9.18193825,225.41,225.4,23.776884]
[1733769020232,9.18193825,225.41,225.32,3.810091]
[1733769020233,20.0,225.38,225.32,3.810091]
[1733769020532,9.18193825,225.33,225.32,3.810091]
[1733769021238,9.18193825,225.34,225.32,3.872091]
[1733769021737,9.18193825,225.33,225.32,27.648975]
[1733769023741,9.18193825,225.34,225.32,27.648975]
[1733769024044,9.18193825,225.35,225.34,3.872091]
[1733769024240,9.18193825,225.35,225.34,27.648975]
[1733769024419,9.18193825,225.36,225.35,23.776884]
[1733769024625,1.5022,225.44,225.35,23.776884]
[1733769024626,20.0,225.43,225.37,23.776884]
[1733769024821,9.18193825,225.38,225.37,23.776884]
[1733769025125,9.18193825,225.38,225.34,23.776884]
[1733769025345,20.0,225.36,225.34,23.776884]
[1733769025521,9.18193825,225.35,225.34,23.776884]
[1733769027324,20.0,225.32,225.25,6.88530864]
[1733769027537,9.18193825,225.26,225.25,3.810091]
[1733769027741,9.18193825,225.26,225.24,6.94730864]
[1733769027953,9.18193825,225.26,225.25,3.810091]
[1733769028616,9.18193825,225.26,225.25,27.586975]
[1733769028946,9.18193825,225.29,225.28,23.776884]
[1733769031037,9.18193825,225.29,225.25,3.872091]
[1733769031242,9.18193825,225.26,225.25,3.872091]
[1733769031552,9.18193825,225.27,225.25,3.872091]
[1733769032329,9.18193825,225.29,225.26,23.776884]
[1733769032557,20.0,225.33,225.27,0.062]
[1733769032754,9.18193825,225.28,225.26,23.776884]
[1733769033059,0.12549,225.32,225.27,3.810091]
[1733769034255,9.18193825,225.28,225.27,23.776884]
[1733769034630,9.18193825,225.28,225.26,23.776884]
[1733769035438,9.18193825,225.28,225.24,23.776884]
[1733769035648,9.18193825,225.26,225.24,23.776884]
[1733769038554,9.18193825,225.27,225.26,23.776884]
[1733769038763,0.12549,225.3,225.26,23.776884]
[1733769039064,9.18193825,225.27,225.26,23.776884]
[1733769040764,9.18193825,225.27,225.22,6.88530864]
[1733769040969,9.18193825,225.23,225.21,6.88530864]
[1733769041142,9.18193825,225.22,225.21,10.69539964]
[1733769041485,9.18193825,225.23,225.21,10.69539964]
[1733769041831,20.0,225.24,225.21,10.69539964]
[1733769041832,9.18193825,225.22,225.21,10.69539964]
[1733769042062,9.18193825,225.22,225.21,34.47228364]
[1733769042237,0.25098,225.28,225.22,23.776884]
[1733769042431,244.84584098,225.5,225.25,3.810091]
[1733769042432,0.12549,225.31,225.25,3.810091]
[1733769042743,0.12549,225.31,225.26,23.776884]
[1733769043062,0.12549,225.27,225.22,23.776884]
[1733769043232,9.18193825,225.23,225.22,23.776884]
[1733769043432,9.18193825,225.24,225.22,23.838884]
[1733769043630,9.18193825,225.23,225.2,6.94730864]
[1733769043837,1.64429,225.27,225.17,3.810091]
[1733769043838,29.18193825,225.21,225.17,3.810091]
[1733769044065,9.18193825,225.18,225.14,0.062]
[1733769044230,9.18193825,225.18,225.12,13.77061728]
[1733769044231,20.0,225.13,225.12,3.810091]
[1733769044429,29.18193825,225.13,225.12,3.810091]
[1733769044637,29.18193825,225.13,225.08,3.872091]
[1733769044835,9.18193825,225.14,225.1,0.062]
[1733769045069,9.18193825,225.14,225.11,3.810091]
[1733769046447,9.18193825,225.14,225.12,23.776884]
[1733769046652,9.18193825,225.14,225.12,23.838884]
[1733769047462,20.0,225.17,225.12,23.838884]
[1733769047463,9.18193825,225.13,225.12,23.838884]
[1733769051357,20.0,225.17,225.12,23.838884]
[1733769051564,9.18193825,225.13,225.12,23.838884]
[1733769056149,9.18193825,225.13,225.12,23.776884]
[1733769056372,9.18193825,225.13,225.11,3.810091]
[1733769056550,9.18193825,225.12,225.11,3.810091]
[1733769056745,9.18193825,225.12,225.09,3.810091]
[1733769057264,9.18193825,225.1,225.07,3.810091]
[1733769057452,9.18193825,225.08,225.05,3.810091]
[1733769057667,45.90969125,225.06,225.05,3.810091]
[1733769058545,45.90969125,225.06,225.05,27.648975]
[1733769058873,20.12549,225.15,225.09,3.810091]
[1733769059075,9.18193825,225.1,225.09,3.810091]
[1733769060659,9.18193825,225.1,225.09,27.586975]
[1733769061878,36.727753,225.17,225.1,23.776884]
[1733769062082,0.12549,225.16,225.13,23.776884]
[1733769062580,36.727753,225.17,225.13,23.776884]
[1733769063173,36.727753,225.17,225.15,23.776884]
[1733769063364,9.18193825,225.16,225.15,23.838884]
[1733769064051,36.727753,225.17,225.15,23.838884]
[1733769064257,9.18193825,225.16,225.15,23.838884]
[1733769065273,1.6506,225.24,225.18,3.810091]
[1733769065585,1.6506,225.24,225.19,23.776884]
[1733769066478,20.0,225.22,225.19,23.776884]
[1733769066675,9.18193825,225.2,225.19,23.776884]
[1733769067885,45.90969125,225.2,225.19,23.776884]
[1733769068261,20.0,225.18,225.17,23.838884]
[1733769068489,65.90969125,225.18,225.17,23.838884]
[1733769069185,65.90969125,225.18,225.15,23.776884]
[1733769069388,9.18193825,225.16,225.15,23.776884]
[1733769069765,9.18193825,225.16,225.11,3.810091]
[1733769069967,9.18193825,225.12,225.11,3.810091]
[1733769070563,9.18193825,225.12,225.1,3.810091]
[1733769070777,9.18193825,225.11,225.1,3.810091]
[1733769071174,9.18193825,225.11,225.07,3.810091]
[1733769071524,9.18193825,225.08,225.07,3.810091]
[1733769072663,9.18193825,225.08,225.07,27.586975]
[1733769073274,14.3584596,225.08,225.07,27.586975]
[1733769073989,1.6371,225.14,225.08,23.776884]
[1733769073990,20.0,225.12,225.08,23.776884]
[1733769074183,14.3584596,225.09,225.08,23.776884]
[1733769074376,14.3584596,225.09,225.08,23.838884]
[1733769074554,3.42552073,225.2,225.08,23.838884]
[1733769074555,14.3584596,225.1,225.09,27.586975]
[1733769074977,14.3584596,225.12,225.09,27.586975]
[1733769075197,14.3584596,225.13,225.12,0.062]
[1733769075409,14.3584596,225.13,225.12,23.838884]
[1733769078004,14.3584596,225.15,225.14,0.062]
[1733769078314,14.3584596,225.15,225.14,27.648975]
[1733769082484,14.3584596,225.16,225.14,27.648975]
[1733769082702,14.3584596,225.19,225.18,0.062]
[1733769082906,16.54869918,225.26,225.18,0.062]
[1733769082907,14.3584596,225.2,225.18,0.062]
[1733769083206,14.3584596,225.2,225.19,27.586975]
[1733769090499,14.3584596,225.2,225.19,27.462475]
[1733769093303,9.17602916,225.21,225.2,23.838884]
[1733769093810,9.17602916,225.24,225.23,23.776884]
[1733769101033,20.0,225.21,225.18,3.685591]
[1733769101195,9.17602916,225.19,225.18,3.685591]
[1733769101399,20.0,225.17,225.16,3.685591]
[1733769101592,65.8801458,225.17,225.14,3.747591]
[1733769101899,9.17602916,225.15,225.14,3.747591]
[1733769103230,9.17602916,225.15,225.14,27.524475]
[1733769107542,9.17602916,225.15,225.05,0.062]
[1733769107752,56.70411664,225.17,225.06,3.685591]
[1733769107753,20.0,225.12,225.06,3.685591]
[1733769108038,20.0,225.12,225.07,0.062]
[1733769108241,20.12549,225.14,225.07,0.062]
[1733769108925,20.12549,225.14,225.06,3.685591]
[1733769109115,9.17602916,225.07,225.06,27.462475]
[1733769109927,9.17602916,225.07,225.06,3.685591]
[1733769110513,20.0,225.14,225.08,0.062]
[1733769110730,20.0,225.14,225.08,3.747591]
[1733769110731,9.17602916,225.09,225.08,3.747591]
[1733769111218,14.35362762,225.09,225.08,27.524475]
[1733769114652,20.0,225.14,225.1,27.524475]
[1733769114653,14.35362762,225.11,225.1,27.524475]
[1733769119359,14.35362762,225.13,225.12,0.062]
[1733769119557,14.35362762,225.13,225.12,27.524475]
[1733769119930,14.35362762,225.15,225.14,3.747591]
[1733769120266,14.35362762,225.17,225.16,3.747591]
[1733769120465,14.35362762,225.17,225.16,27.524475]
[1733769121337,14.35362762,225.17,225.16,0.062]
[1733769122062,14.35362762,225.17,225.16,27.524475]
[1733769123045,28.70725524,225.17,225.16,23.776884]
[1733769123254,20.0,225.15,225.14,23.838884]
[1733769123565,34.35362762,225.15,225.14,23.838884]
[1733769126272,34.35362762,225.15,225.14,23.776884]
[1733769126871,34.35362762,225.15,225.14,23.838884]
[1733769127242,14.35362762,225.15,225.14,23.838884]
[1733769127639,14.35362762,225.17,225.16,3.685591]
[1733769128053,14.35362762,225.17,225.16,27.524475]
[1733769129464,14.35362762,225.17,225.16,27.462475]
[1733769130542,28.70725524,225.17,225.15,23.776884]
[1733769130743,14.35362762,225.16,225.15,23.776884]
[1733769134573,14.35362762,225.18,225.17,0.062]
[1733769135477,14.35362762,225.18,225.17,27.524475]
[1733769135680,14.35362762,225.28,225.23,0.062]
[1733769135973,14.35362762,225.24,225.23,0.062]
[1733769136480,14.35362762,225.24,225.21,3.747591]
[1733769136777,14.35362762,225.22,225.21,3.747591]
[1733769137673,14.35362762,225.22,225.21,27.524475]
[1733769138953,14.35362762,225.22,225.21,27.462475]
[1733769139159,14.35362762,225.22,225.2,23.776884]
[1733769139391,14.35362762,225.28,225.21,3.685591]
[1733769139678,20.0,225.25,225.22,23.776884]
[1733769141179,9.17904347,225.23,225.22,23.776884]
[1733769145991,56.71617388,225.28,225.22,23.838884]
[1733769146179,9.17904347,225.23,225.22,23.838884]
[1733769146967,9.17904347,225.23,225.22,0.062]
[1733769147288,9.17904347,225.23,225.22,23.838884]
[1733769149083,36.71617388,225.28,225.22,23.838884]
[1733769149291,1.6434,225.33,225.26,0.062]
[1733769149585,9.17904347,225.27,225.26,0.062]
[1733769151970,9.17904347,225.27,225.25,23.776884]
[1733769152173,20.0,225.26,225.25,23.776884]
[1733769152397,29.17904347,225.26,225.25,23.776884]
[1733769154775,29.17904347,225.26,225.23,23.776884]
[1733769154977,9.17904347,225.24,225.23,23.776884]
[1733769155505,9.17904347,225.24,225.23,3.685591]
[1733769155708,9.17904347,225.24,225.23,27.462475]
[1733769156008,9.17904347,225.24,225.23,23.776884]
[1733769156302,9.17904347,225.24,225.23,27.462475]
[1733769156882,9.17904347,225.24,225.23,3.685591]
[1733769157093,9.17904347,225.24,225.23,27.462475]
[1733769159206,9.17904347,225.24,225.23,3.685591]
[1733769159392,9.17904347,225.24,225.23,27.462475]
[1733769160785,9.17904347,225.24,225.23,3.685591]
[1733769160986,9.17904347,225.24,225.23,23.776884]
[1733769161179,9.17904347,225.24,225.23,27.462475]
[1733769162281,20.0,225.25,225.23,27.462475]
[1733769162502,20.0,225.25,225.24,23.776884]
[1733769162708,29.17904347,225.25,225.24,23.776884]
[1733769167326,20.0,225.25,225.24,23.838884]
[1733769167536,29.17904347,225.25,225.24,23.838884]
[1733769168219,20.0,225.25,225.24,23.838884]
[1733769168598,1.6459,225.35,225.3,23.776884]
[1733769168903,9.17904347,225.31,225.3,23.776884]
[1733769172027,9.17904347,225.31,225.28,23.776884]
[1733769172230,29.17904347,225.29,225.28,23.776884]
[1733769172526,29.17904347,225.29,225.22,1.5562]
[1733769172527,65.89521735,225.29,225.26,3.685591]
[1733769172727,36.71617388,225.28,225.27,23.776884]
[1733769172912,45.89521735,225.28,225.27,23.776884]
[1733769173318,45.89521735,225.28,225.27,23.838884]
[1733769173621,9.17904347,225.28,225.27,23.838884]
[1733769175212,9.17904347,225.28,225.27,23.776884]
[1733769175615,9.17904347,225.28,225.27,23.838884]
[1733769179932,45.89521735,225.28,225.27,23.776884]
[1733769183132,20.0,225.25,225.23,0.062]
[1733769183308,9.17904347,225.24,225.23,0.062]
[1733769185425,9.17904347,225.24,225.23,0.012]
[1733769185608,20.0,225.33,225.26,3.685591]
[1733769185814,9.17904347,225.27,225.26,3.685591]
[1733769187424,1.6459,225.35,225.29,3.685591]
[1733769187744,9.17904347,225.3,225.29,3.685591]
[1733769188633,1.314409,225.37,225.31,3.685591]
[1733769188634,1.77884157,225.37,225.31,3.685591]
[1733769188858,9.17904347,225.32,225.31,3.685591]
[1733769189644,36.71617388,225.39,225.31,3.685591]
[1733769189846,9.17904347,225.32,225.31,3.685591]
[1733769199636,20.0,225.29,225.28,3.685591]
[1733769200029,9.17904347,225.29,225.28,3.685591]
[1733769201062,9.17904347,225.3,225.28,27.462475]
[1733769202130,9.17904347,225.3,225.29,23.776884]
[1733769202841,36.71617388,225.39,225.29,23.776884]
[1733769202842,9.17904347,225.31,225.29,23.776884]
[1733769203164,9.17904347,225.31,225.3,3.685591]
[1733769203359,9.17904347,225.32,225.3,3.685591]
[1733769204663,9.17904347,225.31,225.3,3.685591]
[1733769207837,9.17904347,225.31,225.2,11.88530864]
[1733769207838,20.0,225.28,225.25,3.685591]
[1733769208035,20.0,225.28,225.27,3.685591]
[1733769208382,29.17904347,225.28,225.27,3.685591]
[1733769208663,9.17904347,225.28,225.27,3.685591]
[1733769211246,8.33819313,225.28,225.27,3.685591]
[1733769212957,20.0,225.32,225.27,3.685591]
[1733769213270,20.0,225.32,225.3,3.685591]
[1733769213969,20.0,225.32,225.28,3.685591]
[1733769214143,20.0,225.32,225.3,3.685591]
[1733769215978,20.0,225.32,225.28,3.685591]
[1733769218378,20.0,225.32,225.17,18.77061728]
[1733769218379,20.0,225.26,225.24,3.685591]
[1733769218544,8.33819313,225.25,225.24,3.685591]
[1733769221879,8.33819313,225.25,225.16,10.57089964]
[1733769221880,20.0,225.22,225.16,10.57089964]
[1733769222060,8.33819313,225.17,225.16,3.685591]
[1733769229386,20.0,225.14,225.12,3.685591]
[1733769229593,8.33819313,225.13,225.12,3.685591]
[1733769233290,20.0,225.1,225.09,3.685591]
[1733769233490,28.33819313,225.1,225.09,3.685591]
[1733769238071,20.0,225.14,225.12,3.685591]
[1733769238372,8.33819313,225.13,225.12,3.685591]
[1733769238972,0.12549,225.22,225.15,3.685591]
[1733769239296,8.33819313,225.16,225.15,3.685591]
[1733769244384,20.0,225.13,225.1,3.685591]
[1733769244674,8.33819313,225.11,225.1,3.685591]
[1733769244863,8.33819313,225.11,225.09,3.685591]
[1733769245272,8.33819313,225.1,225.09,3.685591]
[1733769247785,8.33819313,225.1,225.06,3.685591]
[1733769248086,8.33819313,225.07,225.06,3.685591]
[1733769248985,20.0,225.05,225.04,3.685591]
[1733769249186,28.33819313,225.05,225.04,3.685591]
[1733769251499,28.33819313,225.05,224.99,4.441]
[1733769251500,20.0,225.03,225.02,4.441]
[1733769251672,28.33819313,225.03,225.02,4.441]
[1733769254403,28.33819313,225.03,225.0,4.441]
[1733769254879,28.33819313,225.03,225.0,3.685591]
[1733769255401,28.33819313,225.03,224.97,3.685591]
[1733769255611,28.33819313,225.03,225.0,3.685591]
[1733769256806,28.33819313,225.03,224.97,3.685591]
[1733769257001,28.33819313,225.03,224.91,1.511]
[1733769257002,28.33819313,225.03,225.0,3.685591]
[1733769257203,28.33819313,225.03,224.97,3.685591]
[1733769257402,20.0,225.03,225.0,3.685591]
[1733769258907,33.35277252,225.06,225.03,3.685591]
[1733769259805,33.35277252,225.06,225.02,200.0]
[1733769260005,20.0,225.03,225.02,200.0]
[1733769260504,28.33819313,225.03,225.02,200.0]
[1733769263539,52.36605713,225.03,225.02,122.55194938]
[1733769264334,52.36605713,225.03,225.02,107.21858979]
[1733769264748,85.71882965,225.03,225.02,95.94244439]
[1733769265034,85.71882965,225.03,225.02,80.79244439]
[1733769265740,52.36605713,225.03,225.02,80.79244439]
[1733769265932,54.20697939,225.03,225.02,3.34439377]
[1733769266140,54.20697939,225.03,224.94,3.685591]
[1733769266141,20.0,224.99,224.94,3.685591]
[1733769266432,20.0,224.95,224.94,3.685591]
[1733769266640,36.72960868,224.95,224.94,3.685591]
[1733769267210,61.8240217,224.95,224.94,3.685591]
[1733769267441,28.36480434,224.95,224.94,3.685591]
[1733769267610,61.8240217,224.95,224.91,3.685591]
[1733769267936,8.36480434,224.92,224.91,3.685591]
[1733769268127,8.36480434,224.93,224.91,3.685591]
[1733769268941,8.36480434,224.92,224.91,3.685591]
[1733769272042,20.0,224.95,224.94,3.685591]
[1733769272220,28.36480434,224.95,224.94,3.685591]
[1733769275138,28.36256468,224.95,224.94,3.685591]
[1733769276112,8.36256468,225.03,225.0,3.685591]
[1733769277144,8.36256468,225.02,225.0,3.685591]
[1733769277312,1.78951017,225.09,225.0,3.685591]
[1733769277313,8.36256468,225.03,225.0,3.685591]
[1733769277712,6.3285,225.1,225.04,3.685591]
[1733769277940,8.36256468,225.05,225.04,3.685591]
[1733769278336,1.81589051,225.1,225.04,3.685591]
[1733769278537,8.36256468,225.05,225.04,3.685591]
[1733769291164,8.36256468,225.05,225.02,3.685591]
[1733769291346,20.0,225.0,224.99,3.685591]
[1733769291541,28.36256468,225.0,224.99,3.685591]
[1733769292251,28.36256468,225.0,224.97,3.685591]